fUSD/lending_fUSD_20260224
["ID","MTS","AMOUNT","RATE_DAILY","PERIOD"]
[406603832,1771969838799,-1229.1,0.00013698,2]
[406603833,1771969838809,-1229.1,0.00013698,2]
[406603834,1771969838818,-1229.1,0.00013698,2]
[406603835,1771969838828,-1229.1,0.00013698,2]
[406603836,1771969838837,-1229.1,0.00013698,2]
[406603837,1771969838847,-1229.1,0.00013698,2]
[406603838,1771969838858,-1229.1,0.00013698,2]
[406603839,1771969838867,-557.94,0.00013698,2]
[406603840,1771969838877,-557.94,0.00013698,2]
[406603841,1771969838887,-557.94,0.00013698,2]
[406603842,1771969838897,-557.94,0.00013698,2]
[406603843,1771969838906,-557.94,0.00013698,2]
[406603844,1771969838916,-557.94,0.00013698,2]
[406603845,1771969838926,-557.94,0.00013698,2]
[406603846,1771969838936,-557.94,0.00013698,2]
[406603847,1771969838945,-557.94,0.00013698,2]
[406603848,1771969838956,-557.94,0.00013698,2]
[406603849,1771969838965,-557.94,0.00013698,2]
[406603850,1771969838975,-557.94,0.00013698,2]
[406603851,1771969838985,-557.94,0.00013698,2]
[406603852,1771969838994,-557.94,0.00013698,2]
[406603853,1771969839004,-557.94,0.00013698,2]
[406603854,1771969839013,-557.94,0.00013698,2]
[406603855,1771969839022,-500.0,0.00013698,2]
[406603856,1771969839033,-500.0,0.00013698,2]
[406603857,1771969839042,-500.0,0.00013698,2]
[406603858,1771969839051,-500.0,0.00013698,2]
[406603859,1771969839061,-500.0,0.00013698,2]
[406603860,1771969839070,-500.0,0.00013698,2]
[406603861,1771969839080,-500.0,0.00013698,2]
[406603862,1771969839090,-500.0,0.00013698,2]
[406603863,1771969839099,-500.0,0.00013698,2]
[406603864,1771969839108,-500.0,0.00013698,2]
[406603865,1771969839118,-500.0,0.00013698,2]
[406603866,1771969839127,-500.0,0.00013698,2]
[406603867,1771969839137,-500.0,0.00013698,2]
[406603868,1771969839147,-210.4,0.00013698,2]
[406603869,1771969839156,-500.0,0.00013698,2]
[406603870,1771969839166,-500.0,0.00013698,2]
[406603871,1771969839176,-500.0,0.00013698,2]
[406603872,1771969839185,-500.0,0.00013698,2]
[406603874,1771969839194,-500.0,0.00013698,2]
[406603875,1771969839203,-500.0,0.00013698,2]
[406603876,1771969839213,-500.0,0.00013698,2]
[406603877,1771969839222,-395.88818611,0.00013698,2]
[406603878,1771969839231,-500.0,0.00013698,2]
[406603879,1771969839240,-500.0,0.00013698,2]
[406603880,1771969839249,-500.0,0.00013698,2]
[406603881,1771969839258,-500.0,0.00013698,2]
[406603882,1771969839267,-500.0,0.00013698,2]
[406603883,1771969839276,-500.0,0.00013698,2]
[406603884,1771969839286,-500.0,0.00013698,2]
[406603885,1771969839295,-500.0,0.00013698,2]
[406603886,1771969839305,-500.0,0.00013698,2]
[406603887,1771969839315,-500.0,0.00013698,2]
[406603888,1771969839324,-500.0,0.00013698,2]
[406603889,1771969839334,-500.0,0.00013698,2]
[406603890,1771969839343,-500.0,0.00013698,2]
[406603891,1771969839353,-500.0,0.00013698,2]
[406603892,1771969839363,-222.44569411,0.00013698,2]
[406603893,1771969839374,-436.94,0.00013713,2]
[406603895,1771969839383,-3500.0,0.0001386,2]
[406603896,1771969839393,-3500.0,0.0001386,2]
[406603898,1771969839402,-2258.70537993,0.0001386,2]
[406603899,1771969839412,-2611.69642164,0.0001386,2]
[406603900,1771969839421,-3500.0,0.0001386,2]
[406603901,1771969839432,-173.87087054,0.00013905,2]
[406603902,1771969839441,-160.0,0.00013905,2]
[406603903,1771969839455,-1252.0,0.00013997,2]
[406603904,1771969839464,-1152.0,0.00013998,2]
[406603905,1771969839473,-4609.0,0.00013998,2]
[406603906,1771969839482,-299.69098216,0.00014029,2]
[406603907,1771969839493,-382.83054278,0.00014038,2]
[406603908,1771969839503,-32345.00520549,0.00014156,2]
[406603909,1771969839512,-500.0,0.00014158,2]
[406603910,1771969839521,-518.48,0.00014158,2]
[406603911,1771969839532,-150.96195478,0.00014158,2]
[406603912,1771969839541,-500.0,0.00014158,2]
[406603913,1771969839551,-500.0,0.00014158,2]
[406603914,1771969839561,-503.69,0.00014158,2]
[406603915,1771969839570,-500.0,0.00014158,2]
[406603916,1771969839579,-508.33,0.00014158,2]
[406603917,1771969839588,-893.91,0.00014158,2]
[406603918,1771969839598,-500.0,0.00014158,2]
[406603919,1771969839607,-500.0,0.00014158,2]
[406603920,1771969839616,-500.0,0.00014158,2]
[406603921,1771969839626,-501.44,0.00014158,2]
[406603922,1771969839635,-834.42,0.00014158,2]
[406603923,1771969839645,-578.91,0.00014158,2]
[406603924,1771969839654,-768.51,0.00014166,2]
[406603925,1771969839663,-1229.1,0.00014166,2]
[406603926,1771969839673,-557.94,0.00014166,2]
[406603927,1771969839683,-436.94,0.00014241,2]
[406603928,1771969839692,-1172.263066,0.00014314,7]
[406603929,1771969839701,-186.004558,0.00014314,7]
[406603930,1771969839710,-44154.83880132,0.00014382,2]
[406603931,1771969839719,-3878.78609231,0.00014408,2]
[406603932,1771969839729,-4000.0,0.00014408,2]
[406603933,1771969839739,-2125.47133191,0.00014408,2]
[406603934,1771969839748,-151.0,0.00014634,2]
[406603935,1771969839758,-151.0,0.00014634,2]
[406603936,1771969839767,-176.18400318,0.000149,2]
[406603937,1771969839777,-4500.0,0.00014956,2]
[406603938,1771969839787,-44154.83880132,0.00015086,2]
[406603939,1771969839796,-32345.00520549,0.00015092,2]
[406603940,1771969839805,-506.17778994,0.000151,2]
[406603941,1771969839815,-500.0,0.000151,2]
[406603942,1771969839976,-500.0,0.000151,2]
[406603943,1771969839986,-500.0,0.000151,2]
[406603944,1771969839996,-500.0,0.000151,2]
[406603945,1771969840005,-321.39394586,0.000151,2]
[406603946,1771969840015,-500.0,0.000151,2]
[406603947,1771969840024,-249.19438992,0.000151,2]
[406603948,1771969840034,-500.0,0.000151,2]
[406603949,1771969840043,-503.3459029,0.000151,2]
[406603950,1771969840052,-162.13031906,0.000151,2]
[406603951,1771969840061,-500.0,0.000151,2]
[406603952,1771969840071,-500.0,0.000151,2]
[406603953,1771969840080,-500.0,0.000151,2]
[406603954,1771969840089,-500.0,0.000151,2]
[406603955,1771969840098,-500.0,0.000151,2]
[406603956,1771969840107,-500.0,0.000151,2]
[406603957,1771969840116,-500.0,0.000151,2]
[406603958,1771969840126,-500.0,0.000151,2]
[406603959,1771969840136,-500.0,0.000151,2]
[406603960,1771969840145,-500.0,0.000151,2]
[406603961,1771969840154,-500.0,0.000151,2]
[406603962,1771969840163,-500.0,0.000151,2]
[406603963,1771969840174,-511.86901658,0.000151,2]
[406603964,1771969840183,-164.04818431,0.000151,2]
[406603965,1771969840192,-500.0,0.000151,2]
[406603966,1771969840201,-500.0,0.000151,2]
[406603967,1771969840211,-500.0,0.000151,2]
[406603968,1771969840220,-500.0,0.000151,2]
[406603969,1771969840230,-501.93759306,0.000151,2]
[406603970,1771969840239,-500.0,0.000151,2]
[406603971,1771969840249,-304.38005979,0.000151,2]
[406603972,1771969840258,-500.0,0.000151,2]
[406603973,1771969840268,-500.0,0.000151,2]
[406603974,1771969840278,-500.0,0.000151,2]
[406603975,1771969840288,-500.0,0.000151,2]
[406603976,1771969840298,-166.89168146,0.000151,2]
[406603977,1771969840307,-500.0,0.000151,2]
[406603978,1771969840316,-500.0,0.000151,2]
[406603979,1771969840326,-163.37868708,0.000151,2]
[406603980,1771969840335,-500.0,0.000151,2]
[406603981,1771969840345,-162.83690276,0.000151,2]
[406603982,1771969840354,-599.206441,0.000151,2]
[406603983,1771969840363,-162.01971634,0.000151,2]
[406603984,1771969840372,-168.61283304,0.000151,2]
[406603985,1771969840382,-186.88471708,0.000151,2]
[406603986,1771969840392,-500.0,0.000151,2]
[406603987,1771969840401,-500.0,0.000151,2]
[406603988,1771969840411,-500.0,0.000151,2]
[406603989,1771969840420,-500.0,0.000151,2]
[406603990,1771969840429,-500.0,0.000151,2]
[406603991,1771969840438,-500.0,0.000151,2]
[406603992,1771969840448,-170.38160206,0.000151,2]
[406603993,1771969840462,-487.94127816,0.000151,2]
[406603994,1771969840471,-162.16417793,0.000151,2]
[406603995,1771969840480,-209.6165406,0.000151,2]
[406603996,1771969840490,-500.0,0.000151,2]
[406603997,1771969840501,-500.0,0.000151,2]
[406603998,1771969840511,-500.0,0.00015119,2]
[406603999,1771969840521,-518.48,0.00015119,2]
[406604000,1771969840533,-500.0,0.00015119,2]
[406604001,1771969840542,-500.0,0.00015119,2]
[406604002,1771969840552,-503.69,0.00015119,2]
[406604003,1771969840561,-500.0,0.00015119,2]
[406604004,1771969840570,-508.33,0.00015119,2]
[406604005,1771969840579,-893.91,0.00015119,2]
[406604006,1771969840589,-500.0,0.00015119,2]
[406604007,1771969840598,-500.0,0.00015119,2]
[406604008,1771969840607,-500.0,0.00015119,2]
[406604009,1771969840617,-501.44,0.00015119,2]
[406604010,1771969840626,-834.42,0.00015119,2]
[406604011,1771969840638,-578.91,0.00015119,2]
[406604012,1771969840648,-466.76,0.00015368,2]
[406604013,1771969840658,-1613.0,0.00015398,2]
[406604014,1771969840668,-6453.0,0.00015398,2]
[406604015,1771969840677,-2129.0,0.00015402,2]
[406604016,1771969840687,-5000.0,0.00015504,2]
[406604017,1771969840696,-16914.87,0.00015504,2]
[406604018,1771969840705,-3240.0,0.00015595,2]
[406604019,1771969840715,-521.28615412,0.00015648,2]
[406604020,1771969840724,-1000.0,0.00015648,2]
[406604021,1771969840733,-1000.0,0.00015648,2]
[406604022,1771969840742,-1000.0,0.00015648,2]
[406604023,1771969840751,-702.01765038,0.00015648,2]
[406604024,1771969840760,-1000.0,0.00015648,2]
[406604025,1771969840769,-1000.0,0.00015648,2]
[406604026,1771969840778,-901.66587779,0.00015648,2]
[406604027,1771969840787,-1000.0,0.00015648,2]
[406604028,1771969840797,-158.07153159,0.00015648,2]
[406604029,1771969840806,-996.70155194,0.00015648,2]
[406604030,1771969840815,-1000.0,0.00015648,2]
[406604031,1771969840823,-1000.0,0.00015648,2]
[406604032,1771969840833,-505.16535574,0.00015648,2]
[406604033,1771969840842,-399.24111128,0.00015648,2]
[406604034,1771969840851,-1008.9890561,0.00015648,2]
[406604035,1771969840861,-1014.39606761,0.00015648,2]
[406604036,1771969840870,-1000.0,0.00015648,2]
[406604037,1771969840880,-1000.0,0.00015648,2]
[406604038,1771969840889,-1092.86766843,0.00015648,2]
[406604039,1771969840898,-1000.0,0.00015648,2]
[406604040,1771969840907,-1000.0,0.00015648,2]
[406604041,1771969840916,-402.52681035,0.00015648,2]
[406604042,1771969840926,-1000.0,0.00015648,2]
[406604043,1771969840935,-1000.0,0.00015648,2]
[406604044,1771969840944,-1000.0,0.00015648,2]
[406604045,1771969840954,-583.60061699,0.00015648,2]
[406604046,1771969840963,-1000.0,0.00015648,2]
[406604047,1771969840972,-1000.0,0.00015648,2]
[406604048,1771969840981,-1000.0,0.00015648,2]
[406604049,1771969840989,-503.06431107,0.00015648,2]
[406604050,1771969840999,-1000.0,0.00015648,2]
[406604051,1771969841008,-1000.0,0.00015648,2]
[406604052,1771969841018,-1000.0,0.00015648,2]
[406604053,1771969841027,-1028.84101903,0.00015648,2]
[406604054,1771969841037,-436.95947364,0.00015648,2]
[406604055,1771969841046,-1000.0,0.00015648,2]
[406604056,1771969841057,-1000.0,0.00015648,2]
[406604057,1771969841067,-1000.0,0.00015739,2]
[406604058,1771969841076,-44154.83880132,0.00015789,2]
[406604059,1771969841085,-661.35009067,0.00016018,2]
[406604060,1771969841094,-32345.00520549,0.00016028,2]
[406604061,1771969841103,-151.0,0.0001603,2]
[406604062,1771969841113,-4571.89980967,0.00016052,2]
[406604063,1771969841122,-9999.99,0.00016116,2]
[406604064,1771969841131,-9999.99,0.00016116,2]
[406604065,1771969841141,-1000.0,0.00016133,2]
[406604066,1771969841150,-1500.0,0.00016196,2]
[406604067,1771969841159,-1500.0,0.00016196,2]
[406604068,1771969841168,-1500.0,0.00016196,2]
[406604069,1771969841177,-1500.0,0.00016196,2]
[406604070,1771969841187,-817.40894872,0.00016196,2]
[406604071,1771969841196,-1500.0,0.00016196,2]
[406604072,1771969841205,-1390.05507377,0.00016196,2]
[406604073,1771969841215,-1500.0,0.00016196,2]
[406604074,1771969841224,-346.49305223,0.00016196,2]
[406604075,1771969841233,-602.53164684,0.00016196,2]
[406604076,1771969841243,-1500.0,0.00016196,2]
[406604077,1771969841252,-1500.0,0.00016196,2]
[406604078,1771969841261,-659.69197378,0.00016196,2]
[406604079,1771969841271,-1500.0,0.00016196,2]
[406604080,1771969841280,-1500.0,0.00016196,2]
[406604081,1771969841289,-1007.05086599,0.00016196,2]
[406604082,1771969841299,-1500.0,0.00016196,2]
[406604083,1771969841308,-1500.0,0.00016196,2]
[406604084,1771969841317,-474.91571766,0.00016196,2]
[406604085,1771969841327,-1500.0,0.00016196,2]
[406604086,1771969841336,-605.8929222,0.00016196,2]
[406604087,1771969841346,-1500.0,0.00016196,2]
[406604088,1771969841355,-953.27277481,0.00016196,2]
[406604089,1771969841364,-150.0,0.00016438,2]
[406604090,1771969841373,-44154.83880132,0.00016493,2]
[406604091,1771969841382,-1000.0,0.00016526,2]
[406604092,1771969841391,-242.78,0.0001658,2]
[406604093,1771969841402,-768.51,0.00016743,2]
[406604094,1771969841411,-1229.1,0.00016743,2]
[406604095,1771969841421,-557.94,0.00016743,2]
[406604096,1771969841430,-2000.0,0.00016744,2]
[406604097,1771969841439,-642.81462324,0.00016744,2]
[406604098,1771969841449,-500.17462146,0.00016744,2]
[406604099,1771969841462,-2000.0,0.00016744,2]
[406604100,1771969841471,-1017.72340136,0.00016744,2]
[406604101,1771969841480,-510.93637167,0.00016744,2]
[406604102,1771969841491,-2000.0,0.00016744,2]
[406604103,1771969841500,-1755.82806005,0.00016744,2]
[406604104,1771969841510,-932.65135931,0.00016744,2]
[406604105,1771969841519,-2000.0,0.00016744,2]
[406604106,1771969841529,-2003.05357398,0.00016744,2]
[406604107,1771969841538,-2000.0,0.00016744,2]
[406604108,1771969841547,-1000.0,0.0001692,2]
[406604109,1771969841557,-2258.0,0.00016937,2]
[406604110,1771969841566,-9035.0,0.00016937,2]
[406604111,1771969841575,-3620.0,0.00016941,2]
[406604112,1771969841584,-501.58967205,0.00016964,2]
[406604113,1771969841593,-518.48,0.00016964,2]
[406604114,1771969841602,-500.0,0.00016964,2]
[406604115,1771969841611,-500.0,0.00016964,2]
[406604116,1771969841620,-503.69,0.00016964,2]
[406604117,1771969841630,-500.0,0.00016964,2]
[406604118,1771969841639,-508.33,0.00016964,2]
[406604119,1771969841648,-893.91,0.00016964,2]
[406604120,1771969841658,-500.0,0.00016964,2]
[406604121,1771969841667,-500.0,0.00016964,2]
[406604122,1771969841677,-500.0,0.00016964,2]
[406604123,1771969841686,-501.44,0.00016964,2]
[406604124,1771969841695,-834.42,0.00016964,2]
[406604125,1771969841705,-578.91,0.00016964,2]
[406604126,1771969841714,-32345.00520549,0.00016964,2]
[406604127,1771969841722,-150.0,0.00016986,2]
[406604128,1771969841732,-518.48,0.00016999,2]
[406604129,1771969841741,-518.48,0.00016999,2]
[406604130,1771969841751,-518.48,0.00016999,2]
[406604131,1771969841760,-500.0,0.00016999,2]
[406604132,1771969841770,-500.0,0.00016999,2]
[406604133,1771969841779,-500.0,0.00016999,2]
[406604134,1771969841788,-500.0,0.00016999,2]
[406604135,1771969841798,-500.0,0.00016999,2]
[406604136,1771969841807,-500.0,0.00016999,2]
[406604137,1771969841817,-503.69,0.00016999,2]
[406604138,1771969841827,-503.69,0.00016999,2]
[406604139,1771969841836,-503.69,0.00016999,2]
[406604140,1771969841846,-500.0,0.00016999,2]
[406604141,1771969841856,-500.0,0.00016999,2]
[406604142,1771969841866,-500.0,0.00016999,2]
[406604143,1771969841875,-508.33,0.00016999,2]
[406604144,1771969841885,-508.33,0.00016999,2]
[406604145,1771969841895,-508.33,0.00016999,2]
[406604146,1771969841905,-893.91,0.00016999,2]
[406604147,1771969841919,-893.91,0.00016999,2]
[406604148,1771969841928,-893.91,0.00016999,2]
[406604149,1771969841938,-500.0,0.00016999,2]
[406604150,1771969841947,-500.0,0.00016999,2]
[406604151,1771969841956,-500.0,0.00016999,2]
[406604152,1771969841966,-500.0,0.00016999,2]
[406604153,1771969841975,-500.0,0.00016999,2]
[406604154,1771969841983,-500.0,0.00016999,2]
[406604155,1771969841999,-500.0,0.00016999,2]
[406604156,1771969842009,-500.0,0.00016999,2]
[406604157,1771969842019,-152.94678281,0.00016999,2]
[406604158,1771969842028,-501.44,0.00016999,2]
[406604159,1771969842037,-501.44,0.00016999,2]
[406604160,1771969842047,-501.44,0.00016999,2]
[406604161,1771969842056,-834.42,0.00016999,2]
[406604162,1771969842065,-834.42,0.00016999,2]
[406604163,1771969842074,-834.42,0.00016999,2]
[406604164,1771969842083,-578.91,0.00016999,2]
[406604165,1771969842092,-578.91,0.00016999,2]
[406604166,1771969842102,-578.91,0.00016999,2]
[406604167,1771969842111,-44154.83880132,0.00017196,2]
[406604168,1771969842121,-2000.0,0.000172,2]
[406604169,1771969842131,-2500.0,0.00017292,2]
[406604170,1771969842140,-978.4151051,0.00017292,2]
[406604171,1771969842150,-2500.0,0.00017292,2]
[406604172,1771969842159,-1017.25085579,0.00017292,2]
[406604173,1771969842169,-2500.0,0.00017292,2]
[406604174,1771969842178,-600.0,0.00017312,2]
[406604176,1771969842187,-329.51,0.00017312,2]
[406604177,1771969842197,-1000.0,0.00017313,2]
[406604178,1771969842206,-202.37532473,0.00017534,2]
[406604179,1771969842215,-3553.10522455,0.0001764,2]
[406604180,1771969842225,-518.48,0.00017727,2]
[406604181,1771969842234,-500.0,0.00017727,2]
[406604182,1771969842243,-500.0,0.00017727,2]
[406604183,1771969842253,-503.69,0.00017727,2]
[406604184,1771969842262,-500.0,0.00017727,2]
[406604185,1771969842271,-508.33,0.00017727,2]
[406604186,1771969842280,-893.91,0.00017727,2]
[406604187,1771969842290,-500.0,0.00017727,2]
[406604188,1771969842299,-500.0,0.00017727,2]
[406604189,1771969842308,-501.44,0.00017727,2]
[406604190,1771969842317,-834.42,0.00017727,2]
[406604191,1771969842326,-578.91,0.00017727,2]
[406604192,1771969842335,-155.51282354,0.00017808,2]
[406604193,1771969842344,-800.0,0.00017808,2]
[406604194,1771969842354,-2500.0,0.0001784,2]
[406604195,1771969842363,-200.21212036,0.0001784,2]
[406604196,1771969842372,-3000.0,0.0001784,2]
[406604197,1771969842381,-704.5275546,0.00017873,2]
[406604198,1771969842391,-25000.0,0.00017874,3]
[406604199,1771969842400,-25000.0,0.00017882,3]
[406604201,1771969842409,-704.52755458,0.00017887,2]
[406604202,1771969842418,-25000.0,0.00017891,3]
[406604204,1771969842427,-518.48,0.00017899,2]
[406604205,1771969842436,-527.25,0.00017899,2]
[406604206,1771969842445,-500.0,0.00017899,2]
[406604207,1771969842458,-503.69,0.00017899,2]
[406604208,1771969842468,-364.45426378,0.00017899,2]
[406604209,1771969842477,-508.33,0.00017899,2]
[406604210,1771969842486,-893.91,0.00017899,2]
[406604211,1771969842497,-500.0,0.00017899,2]
[406604212,1771969842506,-500.0,0.00017899,2]
[406604213,1771969842515,-501.44,0.00017899,2]
[406604214,1771969842525,-834.42,0.00017899,2]
[406604215,1771969842534,-768.51,0.00017899,2]
[406604216,1771969842543,-768.51,0.00017899,2]
[406604220,1771969842686,-768.51,0.00017899,2]
[406604221,1771969842696,-768.51,0.00017899,2]
[406604222,1771969842705,-768.51,0.00017899,2]
[406604223,1771969842714,-768.6766601,0.00017899,2]
[406604224,1771969842724,-578.91,0.00017899,2]
[406604225,1771969842733,-1229.1,0.00017899,2]
[406604226,1771969842742,-1229.1,0.00017899,2]
[406604227,1771969842751,-1229.1,0.00017899,2]
[406604228,1771969842760,-1229.1,0.00017899,2]
[406604229,1771969842769,-1229.1,0.00017899,2]
[406604230,1771969842778,-1229.26529588,0.00017899,2]
[406604231,1771969842787,-557.94,0.00017899,2]
[406604232,1771969842796,-557.94,0.00017899,2]
[406604233,1771969842806,-557.94,0.00017899,2]
[406604234,1771969842815,-557.94,0.00017899,2]
[406604235,1771969842829,-557.94,0.00017899,2]
[406604236,1771969842839,-558.01,0.00017899,2]
[406604237,1771969842848,-1000.0,0.000179,2]
[406604238,1771969842857,-25000.0,0.000179,3]
[406604239,1771969842866,-10000.0,0.000179,2]
[406604240,1771969842875,-25000.0,0.000179,3]
[406604241,1771969842886,-173.87087054,0.000179,3]
[406604242,1771969842896,-704.52755458,0.000179,2]
[406604243,1771969842905,-32345.00520549,0.000179,2]
[406604244,1771969842915,-44154.83880132,0.000179,2]
[406604245,1771969842924,-2700.27555814,0.000179,2]
[406604246,1771969842933,-428.92188999,0.000179,2]
[406604247,1771969842942,-701.43523133,0.000179,3]
[406604248,1771969842952,-1402.43232329,0.000179,2]
[406604249,1771969842961,-500.0,0.000179,2]
[406604250,1771969842971,-500.0,0.000179,2]
[406604251,1771969842981,-500.0,0.000179,2]
[406604252,1771969842991,-500.0,0.000179,2]
[406604253,1771969843002,-500.0,0.000179,2]
[406604254,1771969843013,-500.0,0.000179,2]
[406604255,1771969843023,-500.0,0.000179,2]
[406604256,1771969843033,-500.0,0.000179,2]
[406604257,1771969843043,-500.0,0.000179,2]
[406604258,1771969843052,-500.0,0.000179,2]
[406604259,1771969843062,-500.0,0.000179,2]
[406604260,1771969843073,-500.0,0.000179,2]
[406604261,1771969843084,-500.0,0.000179,2]
[406604262,1771969843094,-500.0,0.000179,2]
[406604263,1771969843105,-500.0,0.000179,2]
[406604264,1771969843115,-500.0,0.000179,2]
[406604265,1771969843124,-500.0,0.000179,2]
[406604266,1771969843135,-500.0,0.000179,2]
[406604267,1771969843144,-500.0,0.000179,2]
[406604268,1771969843153,-500.0,0.000179,2]
[406604269,1771969843163,-500.0,0.000179,2]
[406604270,1771969843172,-500.0,0.000179,2]
[406604271,1771969843180,-500.0,0.000179,2]
[406604272,1771969843190,-500.0,0.000179,2]
[406604273,1771969843199,-500.0,0.000179,2]
[406604274,1771969843208,-500.0,0.000179,2]
[406604275,1771969843217,-500.0,0.000179,2]
[406604276,1771969843226,-500.0,0.000179,2]
[406604277,1771969843235,-500.0,0.000179,2]
[406604278,1771969843245,-500.0,0.000179,2]
[406604279,1771969843255,-500.0,0.000179,2]
[406604280,1771969843265,-500.0,0.000179,2]
[406604281,1771969843275,-500.0,0.000179,2]
[406604282,1771969843284,-500.0,0.000179,2]
[406604283,1771969843292,-500.0,0.000179,2]
[406604284,1771969843302,-500.0,0.000179,2]
[406604285,1771969843311,-500.0,0.000179,2]
[406604286,1771969843321,-500.0,0.000179,2]
[406604287,1771969843330,-500.0,0.000179,2]
[406604288,1771969843339,-500.0,0.000179,2]
[406604289,1771969843348,-500.0,0.000179,2]
[406604290,1771969843357,-500.0,0.000179,2]
[406604291,1771969843367,-500.0,0.000179,2]
[406604292,1771969843376,-500.0,0.000179,2]
[406604293,1771969843385,-500.0,0.000179,2]
[406604294,1771969843394,-500.0,0.000179,2]
[406604295,1771969843403,-500.0,0.000179,2]
[406604296,1771969843412,-500.0,0.000179,2]
[406604297,1771969843421,-487.80716472,0.000179,2]
[406604298,1771969843430,-4098.0,0.00017973,2]
[406604299,1771969843440,-23161.0,0.00017973,2]
[406604300,1771969843451,-661.35009067,0.0001799,2]
[406604301,1771969843463,-661.35009067,0.0001799,2]
[406604302,1771969843472,-1378.658719,0.00017995,2]
[406604303,1771969843482,-400616.9219425,0.00017995,2]
[406604304,1771969843491,-151.0,0.00017997,2]
[406604305,1771969843501,-155.521,0.00017999,2]
[406604306,1771969843510,-518.48,0.00017999,2]
[406604307,1771969843519,-518.48,0.00017999,2]
[406604308,1771969843532,-518.48,0.00017999,2]
[406604309,1771969843541,-518.48,0.00017999,2]
[406604310,1771969843551,-518.48,0.00017999,2]
[406604311,1771969843560,-518.48,0.00017999,2]
[406604312,1771969843569,-518.48,0.00017999,2]
[406604313,1771969843579,-518.48,0.00017999,2]
[406604314,1771969843588,-518.48,0.00017999,2]
[406604315,1771969843597,-518.48,0.00017999,2]
[406604316,1771969843606,-518.48,0.00017999,2]
[406604317,1771969843615,-518.48,0.00017999,2]
[406604318,1771969843624,-518.71229582,0.00017999,2]
[406604319,1771969843634,-500.0,0.00017999,2]
[406604320,1771969843642,-500.0,0.00017999,2]
[406604321,1771969843651,-500.0,0.00017999,2]
[406604322,1771969843659,-500.0,0.00017999,2]
[406604323,1771969843668,-500.0,0.00017999,2]
[406604324,1771969843677,-503.69,0.00017999,2]
[406604325,1771969843686,-503.69,0.00017999,2]
[406604326,1771969843695,-503.69,0.00017999,2]
[406604327,1771969843704,-503.69,0.00017999,2]
[406604328,1771969843713,-503.69,0.00017999,2]
[406604329,1771969843722,-503.69,0.00017999,2]
[406604330,1771969843731,-503.69,0.00017999,2]
[406604331,1771969843741,-503.69,0.00017999,2]
[406604332,1771969843755,-503.69,0.00017999,2]
[406604333,1771969843764,-503.69,0.00017999,2]
[406604334,1771969843773,-503.69,0.00017999,2]
[406604335,1771969843783,-503.69,0.00017999,2]
[406604336,1771969843793,-503.92459131,0.00017999,2]
[406604337,1771969843802,-508.33,0.00017999,2]
[406604338,1771969843811,-508.33,0.00017999,2]
[406604339,1771969843820,-508.33,0.00017999,2]
[406604340,1771969843829,-508.33,0.00017999,2]